Workbook

Sheet Pasiūlymas
A2: PIKIMO SĄLYGŲ PRIEDAS "PASIŪLYMO FORMA"
A4: TRENIRUOKLIAI
A6: Kam: | B6: Gynybos resursų agentūra prie KAM
A8: Data: | B8: 2022-08-12
A9: Nr.: | B9: 220812/01
A10: Vieta: | B10: Klaipėda
A12: Tiekėjo pavadinimas / Ūkio subjektų grupės nariai: | C12: MEGASPORTAS, UAB
A13: Tiekėjo kodas (-ai): | C13: 304975508
A14: Tiekėjo adresas (-ai): | C14: Šilutės pl. 101A, LT-95112 Klaipėda
A15: Tiekėjo PVM mokėtojo kodas(-ai): | C15: LT100012443815
A16: Tiekėjo / Ūkio subjektų grupės atsakingo partnerio sąskaitos numeris, banko pavadinimas ir banko kodas (-ai):
A17: Asmens atsakingo už pasiūlymą vardas, pavardė:
A18: Asmens atsakingo už pasiūlymą telefono numeris, el. pašto adresas:
A19: Tiekėjo / Ūkio subjektų grupės, laimėjimo atveju, pasirašančio sutartį asmens vardas, pavardė, pareigos:
A20: Tiekėjo / Ūkio subjektų grupės, laimėjimo atveju, už sutarties vykdymą atsakingo asmens vardas, pavardė, telefono numeris, elektroninio pašto adresas:
A21: (1) Tiekėjo / Ūkio subjektų grupės narių, (2) ūkio subjektų, kurių pajėgumais remiamasi, ir (3) jei pašalinimo pagrindai taikomi visiems subtiekėjams - subtiekėjų, kolegialaus priežiūros organo (Stebėtojų tarybos) ir (ar) kolegialaus valdymo organo (Valdybos) narių sąrašas (jei sudaryta) ir (ar) asmuo, kuriam suteikti VPĮ 46 str. 2 d. 2 p. numatyti įgaliojimai | G21: =IF((SUMPRODUCT(--(C21=""))>0), "Privaloma užpildyti, kai taikomi pašalinimo pagrindai", "") -> Privaloma užpildyti, kai taikomi pašalinimo pagrindai
A23: Tiekėjo patvirtinimai:
A24: 1. Šiuo pasiūlymu pažymime, kad sutinkame su visomi pirkimo sąlygomis, nustatytomis:
A25: 1.1. viešojo pirkimo dokumentuose
A26: 1.2. kituose pirkimo dokumentuose (jų paaiškinimuose, papildymuose).
A27: 2. Patvirtiname, kad informacija ir duomenys, pateikti pasiūlyme, yra teisingi ir apima viską, ko reikia tinkamam sutarties įvykdymui
A28: 3. Patvirtiname, kad jei pasiūlyme nenurodyti kolegialaus priežiūros/valdymo organų nariai, šie organai juridiniuose asmenyse nėra sudaryti (taikoma, kai pirkimo dokumentuose nustatyti pašalinimo pagrindai).
A29: 4. Pasiūlymas galioja iki termino, nustatyto pirkimo dokumentuose.
A30: 5. Tais atvejais, kai pagal galiojančius teisės aktus tiekėjui nereikia mokėti PVM, jis nurodo priežastis, dėl kurių PVM nemoka:
A31: 6. Tiekėjas kainas pateikia, nurodydamas ne daugiau skaičių po kablelio, nei leidžiama pirkimo dokumentuose.
A32: 1. DALIS | B32: BĖGIMO TAKELIS (4AG)
A34: Tiekėjo pasiūlymas:
A35: Nr. | B35: Pavadinimas | C35: Kiekis | D35: Mato vienetas | E35: Kaina su PVM | F35: Suma su PVM | G35: Gamintojas, modelis
A36: 1. | B36: Bėgimo takelis (4AG)
A37: 1.1. | B37: Bėgimo takelis (4AG) | C37: 20 | D37: vnt. | E37: 2057 | F37: =IF(ISBLANK(E37),"", PRODUCT(C37,E37)) -> 41140 | G37: Evolve Fitness, EV-CT-400L-LCD
E38: Suma be PVM | F38: =IF(OR(ISBLANK(F39),F39="Tiekėjo text"), "", F40-F39) -> 34000
E39: PVM suma | F39: =F40-SUM(F40/1.21) -> 7140
E40: Suma su PVM | F40: =IF((SUMPRODUCT(--(F37:F37=""))>0), "", SUM(F37:F37)) -> 41140 | G40: =IF((SUMPRODUCT(--(F37:F37=""))>0), "Neužpildytos visų objektų kainos", "") -> 
A44: 2. DALIS | B44: ELIPSINIS TRENIRUOKLIS
A46: Tiekėjo pasiūlymas:
A47: Nr. | B47: Pavadinimas | C47: Kiekis | D47: Mato vienetas | E47: Kaina su PVM | F47: Suma su PVM | G47: Gamintojas, modelis
A48: 2. | B48: Elipsinis treniruoklis
A49: 2.1. | B49: Elipsinis treniruoklis | C49: 8 | D49: vnt. | E49: 1573 | F49: =IF(ISBLANK(E49),"", PRODUCT(C49,E49)) -> 12584 | G49: Evolve Fitness, EV-CE-E12-OPT
E50: Suma be PVM | F50: =IF(OR(ISBLANK(F51),F51="Tiekėjo text"), "", F52-F51) -> 10400
E51: PVM suma | F51: 2184
E52: Suma su PVM | F52: =IF((SUMPRODUCT(--(F49:F49=""))>0), "", SUM(F49:F49)) -> 12584 | G52: =IF((SUMPRODUCT(--(F49:F49=""))>0), "Neužpildytos visų objektų kainos", "") -> 
A56: 3. DALIS | B56: DVIRAČIAI TRENIRUOKLIAI
A58: Tiekėjo pasiūlymas:
A59: Nr. | B59: Pavadinimas | C59: Kiekis | D59: Mato vienetas | E59: Kaina su PVM | F59: Suma su PVM | G59: Gamintojas, modelis
A60: 3. | B60: Dviračiai treniruokliai
A61: 3.1. | B61: Dviratis treniruoklis | C61: 4 | D61: vnt. | F61: =IF(ISBLANK(E61),"", PRODUCT(C61,E61)) -> 
A62: 3.2. | B62: Dviratis treniruoklis su oro pasipriešinimu | C62: 2 | D62: vnt. | F62: =IF(ISBLANK(E62),"", PRODUCT(C62,E62)) -> 
E63: Suma be PVM | F63: =IF(OR(ISBLANK(F64),F64="Tiekėjo text"), "", F65-F64) -> 
E64: PVM suma
E65: Suma su PVM | F65: =IF((SUMPRODUCT(--(F61:F62=""))>0), "", SUM(F61:F62)) ->  | G65: =IF((SUMPRODUCT(--(F61:F62=""))>0), "Neužpildytos visų objektų kainos", "") -> Neužpildytos visų objektų kainos
A69: 4. DALIS | B69: IRKLAVIMO TRENIRUOKLIS
A71: Tiekėjo pasiūlymas:
A72: Nr. | B72: Pavadinimas | C72: Kiekis | D72: Mato vienetas | E72: Kaina su PVM | F72: Suma su PVM | G72: Gamintojas, modelis
A73: 4. | B73: Irklavimo treniruoklis
A74: 4.1. | B74: Irklavimo treniruoklis | C74: 6 | D74: vnt. | F74: =IF(ISBLANK(E74),"", PRODUCT(C74,E74)) -> 
E75: Suma be PVM | F75: =IF(OR(ISBLANK(F76),F76="Tiekėjo text"), "", F77-F76) -> 
E76: PVM suma
E77: Suma su PVM | F77: =IF((SUMPRODUCT(--(F74:F74=""))>0), "", SUM(F74:F74)) ->  | G77: =IF((SUMPRODUCT(--(F74:F74=""))>0), "Neužpildytos visų objektų kainos", "") -> Neužpildytos visų objektų kainos
A81: 5. DALIS | B81: JĖGOS LAVINIMO TRENIRUOKLIAI
A83: Tiekėjo pasiūlymas:
A84: Nr. | B84: Pavadinimas | C84: Kiekis | D84: Mato vienetas | E84: Kaina su PVM | F84: Suma su PVM | G84: Gamintojas, modelis
A85: 5. | B85: Jėgos lavinimo treniruokliai
A86: 5.1. | B86: Treniruoklis deltinių raumenų užpakalinei daliai ir krūtinei | C86: 2 | D86: vnt. | E86: 1512.5 | F86: =IF(ISBLANK(E86),"", PRODUCT(C86,E86)) -> 3025 | G86: Evolve Fitness, EV-SC-EC-003
A87: 5.2. | B87: Suolas treniruotis sėdint kampu („Larry Scott“) | C87: 2 | D87: vnt. | E87: 302.5 | F87: 605 | G87: Evolve Fitness, EV-BN-EC-020
A88: 5.3. | B88: Pilvo preso suolas reguliuojamu kampu | C88: 2 | D88: vnt. | E88: 363 | F88: 726 | G88: Evolve Fitness, EV-BN-EC-288
A89: 5.4. | B89: „Smito staklės“ ir pritūpimų stovai | C89: 2 | D89: vnt. | E89: 1210 | F89: 2420 | G89: Evolve Fitness, EV-PL-EC-001
A90: 5.5. | B90: Kojų treniruoklis – spaudimas kampu (Leg-press) | C90: 2 | D90: vnt. | E90: 1573 | F90: 3146 | G90: Evolve Fitness, EV-PL-MT-091
A91: 5.6. | B91: Universalus kojų treniruoklis | C91: 2 | D91: vnt. | E91: 1512.5 | F91: 3025 | G91: Evolve Fitness, EV-SC-EC-025
A92: 5.7. | B92: Treniruoklis „kvadratų sistema“ | C92: 2 | D92: vnt. | E92: 6352.5 | F92: 12705 | G92: Evolve Fitness, EV-SC-EC-500-OPT
A93: 5.8. | B93: Treniruoklis pečiams sėdint – spaudimui į viršų | C93: 2 | D93: vnt. | E93: 1452 | F93: 2904 | G93: Evolve Fitness, EV-SC-EC-004
A94: 5.9. | B94: Treniruoklis krūtinei sėdint – spaudimui | C94: 2 | D94: vnt. | E94: 1452 | F94: 2904 | G94: Evolve Fitness, EV-SC-EC-001
A95: 5.10. | B95: Jėgos trikovės spaudimo ir pritūpimų suolas | C95: 2 | D95: vnt. | E95: 1452 | F95: 2904 | G95: Evolve Fitness, EV-BN-PL-100
A96: 5.11. | B96: Universalus treniruoklis nugarai su vertikalia ir horizontalia trauka | C96: 2 | D96: vnt. | E96: 1452 | F96: 2904 | G96: Evolve Fitness, EV-SC-EC-026-120H
A97: 5.12. | B97: Blauzdų treniruoklis sėdint | C97: 2 | D97: vnt. | E97: 326.7 | F97: 653.4 | G97: Evolve Fitness, EV-PL-EC-011
A98: 5.13. | B98: Treniruoklis kojų dvigalviams raumenims sėdint (lenkimas) | C98: 2 | D98: vnt. | E98: 1452 | F98: 2904 | G98: Evolve Fitness, EV-SC-EC-025
A99: 5.14. | B99: Treniruoklis trapecijai ir nugarai su laisvais svoriais | C99: 2 | D99: vnt. | E99: 1210 | F99: 2420 | G99: Evolve Fitness, EV-PL-MT-076
A100: 5.15. | B100: Kojų treniruoklis (Hakenšmito) | C100: 2 | D100: vnt. | E100: 1452 | F100: 2904 | G100: Evolve Fitness, EV-PL-MT-071
A101: 5.16. | B101: Spaudimo suolas kampu (žemyn galva) | C101: 2 | D101: vnt. | E101: 641.3 | F101: 1282.6 | G101: Evolve Fitness, EV-PL-MT-046
A102: 5.17. | B102: Spaudimo suolas kampu (aukštyn galva) | C102: 2 | D102: vnt. | E102: 641.3 | F102: 1282.6 | G102: Evolve Fitness, EV-PL-MT-046
A103: 5.18. | B103: Spaudimo suolas pečiams (deltinis raumuo) | C103: 2 | D103: vnt. | E103: 580.8 | F103: 1161.6 | G103: Evolve Fitness, EV-PL-BT-052
A104: 5.19. | B104: Treniruoklis nugarai, horizontalus – atrėmus krūtinę | C104: 2 | D104: vnt. | E104: 1089 | F104: 2178 | G104: Evolve Fitness, EV-PL-MT-025
A105: 5.20. | B105: Treniruoklis pečiams – mostai į šonus | C105: 2 | D105: vnt. | E105: 1512.5 | F105: 3025 | G105: Evolve Fitness, EV-SC-EC-034
A106: 5.21. | B106: Treniruoklis nugarai – atsilenkimams | C106: 2 | D106: vnt. | E106: 726 | F106: 1452 | G106: Evolve Fitness, EV-BN-PR-032
A107: 5.22. | B107: Suolas nugarai (atsilenkimai kampu) | C107: 2 | D107: vnt. | E107: 363 | F107: 726 | G107: Evolve Fitness, EV-BN-EC-009
A108: 5.23. | B108: Treniruoklis kojų mostams į šonus stovint | C108: 2 | D108: vnt. | E108: 1512.5 | F108: 3025 | G108: Evolve Fitness, EV-SC-EC-017
A109: 5.24. | B109: Spaudimo suolas gulint horizontaliai | C109: 2 | D109: vnt. | E109: 605 | F109: 1210 | G109: Evolve Fitness, EV-BN-EC-509
A110: 5.25. | B110: Kojų treniruoklis gulint | C110: 2 | D110: vnt. | E110: 1331 | F110: 2662 | G110: Evolve Fitness, EV-PL-MT-018
A111: 5.26. | B111: Pilvo preso stovas – kelti kojas | C111: 2 | D111: vnt. | E111: 544.5 | F111: 1089 | G111: Evolve Fitness, EV-BN-PR-215
A112: 5.27. | B112: Universalus suolas (reguliuojamais kampais) | C112: 4 | D112: vnt. | E112: 387.2 | F112: 1548.8 | G112: Evolve Fitness, EV-BN-EC-034
A113: 5.28. | B113: Suolas su atlošu | C113: 2 | D113: vnt. | E113: 211.75 | F113: 423.5 | G113: Evolve Fitness, EV-BN-EC-024
A114: 5.29. | B114: Lygiagretės | C114: 2 | D114: vnt. | E114: 605 | F114: 1210 | G114: Evolve Fitness, EV-BN-PR-215
A115: 5.30. | B115: Pastatomas skersinis su lygiagretėmis | C115: 2 | D115: vnt. | E115: 641.3 | F115: 1282.6 | G115: Evolve Fitness, EV-BN-EC-008
E116: Suma be PVM | F116: =IF(OR(ISBLANK(F117),F117="Tiekėjo text"), "", F118-F117) -> 57610
E117: PVM suma | F117: 12098.1
E118: Suma su PVM | F118: =IF((SUMPRODUCT(--(F86:F115=""))>0), "", SUM(F86:F115)) -> 69708.1 | G118: =IF((SUMPRODUCT(--(F86:F115=""))>0), "Neužpildytos visų objektų kainos", "") -> 
A122: 6. DALIS | B122: ŠTANGOS IR SVARMENYS
A124: Tiekėjo pasiūlymas:
A125: Nr. | B125: Pavadinimas | C125: Kiekis | D125: Mato vienetas | E125: Kaina su PVM | F125: Suma su PVM | G125: Gamintojas, modelis
A126: 6. | B126: Štangos ir svarmenys
A127: 6.1. | B127: Stovas štangutėms, grifams ir svarmenims. | C127: 2 | D127: vnt. | E127: 181.5 | F127: =IF(ISBLANK(E127),"", PRODUCT(C127,E127)) -> 363 | G127: Šiaulių Atletas, B18
A128: 6.2. | B128: Jėgos trikovės grifas (štanga) | C128: 4 | D128: vnt. | E128: 199.65 | F128: 798.6 | G128: Evolve Fitness, EV-OB-PL-220
A129: 6.3. | B129: Grifas (štanga) | C129: 6 | D129: vnt. | E129: 121 | F129: 726 | G129: Evolve Fitness, EV-OB-EC-220
A130: 6.4. | B130: Grifukai (štangutės) | C130: 6 | D130: kompl. | E130: 217.8 | F130: 1306.8 | G130: Evolve Fitness, EV-OB-CB-120, EV-OB-EC-150, EV-OB-TB-085
A131: 6.5. | B131: Užraktas olimpiniam grifui | C131: 14 | D131: kompl. | E131: 2.42 | F131: 33.88 | G131: Evolve Fitness, EV-OC-SC-01
A132: 6.6. | B132: Diskiniai svarsčiai/svarmenys | C132: 4 | D132: kompl. | E132: 2299 | F132: 9196 | G132: Evolve Fitness, EV-WP-RB-2,5-25N, EV-WP-PP-0,25-25
A133: 6.7. | B133: Svarmenys (giros)16 kg, 24 kg, 32 kg (komplektas) | C133: 6 | D133: kompl. | E133: 217.8 | F133: 1306.8 | G133: Evolve Fitness, EV-KB-IK-16-32
A134: 6.8. | B134: 3/5 taškų eglutė | C134: 6 | D134: vnt. | E134: 157.3 | F134: 943.8 | G134: Evolve Fitness, EV-RS-TR-266
A135: 6.9. | B135: Hantelių komplektas (1-40 kg) | C135: 4 | D135: kompl. | E135: 2117.5 | F135: 8470 | G135: Evolve Fitness, EV-DS-HX-1-40
A136: 6.10. | B136: Stovas hanteliams | C136: 4 | D136: vnt. | E136: 290.4 | F136: 1161.6 | G136: Evolve Fitness, EV-RS-HR-200
E137: Suma be PVM | F137: =IF(OR(ISBLANK(F138),F138="Tiekėjo text"), "", F139-F138) -> 20088
E138: PVM suma | F138: 4218.48
E139: Suma su PVM | F139: =IF((SUMPRODUCT(--(F127:F136=""))>0), "", SUM(F127:F136)) -> 24306.48 | G139: =IF((SUMPRODUCT(--(F127:F136=""))>0), "Neužpildytos visų objektų kainos", "") -> 
A143: 7. DALIS | B143: BĖGIMO TAKELIS (5 AG)
A145: Tiekėjo pasiūlymas:
A146: Nr. | B146: Pavadinimas | C146: Kiekis | D146: Mato vienetas | E146: Kaina su PVM | F146: Suma su PVM | G146: Gamintojas, modelis
A147: 7. | B147: Bėgimo takelis (5 AG)
A148: 7.1. | B148: Bėgimo takelis (5 AG) | C148: 20 | D148: vnt. | E148: 3025 | F148: =IF(ISBLANK(E148),"", PRODUCT(C148,E148)) -> 60500 | G148: Evolve Fitness, EV-CT-500-LCD
E149: Suma be PVM | F149: =IF(OR(ISBLANK(F150),F150="Tiekėjo text"), "", F151-F150) -> 50000
E150: PVM suma | F150: 10500
E151: Suma su PVM | F151: =IF((SUMPRODUCT(--(F148:F148=""))>0), "", SUM(F148:F148)) -> 60500 | G151: =IF((SUMPRODUCT(--(F148:F148=""))>0), "Neužpildytos visų objektų kainos", "") -> 

Sheet Subtiekėjai ir priedai
A2: Ūkio subjektai (įskaitant kvazisubtiekėjus - fiziniai asmenys, kuriuos ketinama įdarbinti pirkimo laimėjimo atveju), kurių pajėgumais tiekėjas remiasi, kad atitiktų keliamus kvalifikacijos reikalavimus:
A5: Pavadinimas* | C5: Kodas, adresas | F5: Perduodami įsipareigojimai | I5: Perduodamų įsipareigojimų dalis nuo visos pirkimo sutarties (Eur arba %) | K5: Kval. Reikalavimo Nr.
A17: Subtiekėjams / subteikėjams / subrangovams numatomos perduoti veiklos (privaloma nurodyti) ir šių ūkio subjektų pavadinimai (jei žinomi):
A19: Pavadinimas | C19: Kodas, adresas | F19: Perduodama veikla* | I19: Perduodamos veiklos dalis nuo visos pirkimo sutarties (Eur arba %)
A33: Kartu su pasiūlymu pateikiami šie dokumentai:
A35: Nr. | B35: Dokumento pavadinimas | H35: Dokumentas yra konfidencialus? Taip/Ne
A36: 1 | B36: Jungtinės veiklos kopija (jei taikoma)
A37: 2 | B37: Europos bendrasis viešųjų pirkimų dokumentas
A38: 3 | B38: Subtiekimo sutartis, ketinimų protokolas, preliminarios sutartys ar kiti dokumentai, patvirtinantys, kad laimėjus pirkimą tiekėjui bus prieinami kitų ūkio subjektų ištekliai (jei pasitelkiami kvalifikacijos atitikimui)
A48: Pasiūlyme nurodyta Prekės kaina, išskyrus jos sudedamąsias dalis, subtiekėjai, taip pat kita informacija, kuri teisės aktų nustatyta tvarka turi būti skelbiama arba kitokiu būdu viešai prieinama visuomenei, nėra laikoma konfidencialia informacija. Konfidencialią informaciją sudaro, visų pirma, komercinė (gamybinė) paslaptis ir konfidencialieji pasiūlymų aspektai. Informacija, kurią viešai skelbti įpareigoja Lietuvos Respublikos įstatymai, negali būti tiekėjo nurodoma kaip konfidenciali, todėl, tiekėjui nurodžius tokią informaciją kaip konfidencialią, perkančioji organizacija turi teisę ją skelbti. Jei tiekėjas nenurodo konfidencialios informacijos, laikoma, kad konfidencialios informacijos tiekėjo pasiūlyme nėra. Vadovaujantis Informacijos viešinimo Centrinėje viešųjų pirkimų informacinėje sistemoje tvarkos aprašu, patvirtintu Viešųjų pirkimų tarnybos direktoriaus 2017 m. birželio 19 d. įsakymu Nr. 1S-91 „Dėl Informacijos viešinimo Centrinėje viešųjų pirkimų informacinėje sistemoje tvarkos aprašo patvirtinimo“, perkančioji organizacija laimėjusio dalyvio pasiūlymą, išskyrus informaciją, kurią tiekėjas nurodė kaip konfidencialią, paskelbs CVP IS.
A51: Tiekėjo arba jo įgalioto asmens pareigų pavadinimas:
A53: Pasirašančio asmens vardas ir pavardė:
A100: 2072 2022-06-30 16:06:16
